Cogmind - Beta 14 *** ADVENTURER MODE // 2025.02.27 @ 22:28:26 Player: EN-G1N Result: Self-destructed Performance ------------- Evolutions (1) 500 Regions Visited (2) 400 Robots Destroyed (26) 130 Value Destroyed (586) 586 Prototype IDs (0) 0 Alien Tech Used (0) 0 Bonus (28) 28 TOTAL SCORE: 1644 Bonus ------- High Alert Combat Kills 28 Cogmind --------- Core Integrity 276/400 Matter 292/300 Energy 100/100 System Corruption 3% Temperature Cool (0) Movement Treading (240) Ox1 Location -9/Materials Parts ------- > --- POWER (1) -------- (None) > --- PROPULSION (3) --- Light Treads > --- UTILITY (3) ------ Large Storage Unit > --- WEAPON (2) ------- Heavy Assault Rifle Heavy Assault Rifle > --- INVENTORY (15) --- Ion Engine Light Ion Engine Small Storage Unit Sensor Array Signal Interpreter Light Armor Plating Shield Generator Tractor Beam Light Assault Rifle Light Assault Rifle Rocket Launcher Rocket Launcher Peak State ------------ > --- POWER ------------ Light Nuclear Core > --- PROPULSION ------- Light Treads > --- UTILITY ---------- Large Storage Unit Seismic Detector Light Armor Plating > --- WEAPON ----------- Rocket Launcher Rocket Launcher > --- INVENTORY -------- Ion Engine Light Ion Engine Small Storage Unit Sensor Array Signal Interpreter Shield Generator Tractor Beam Light Assault Rifle Light Assault Rifle Heavy Assault Rifle [Rating: 12] Favorites ----------- Power Light Nuclear Core Engine Ion Engine Power Core Light Nuclear Core Propulsion Light Treads Treads Light Treads Utility Seismic Detector Device Seismic Detector Storage Large Storage Unit Protection Light Armor Plating Weapon Light Assault Rifle Ballistic Gun Light Assault Rifle Launcher Rocket Launcher Build | -11 -10 -9 ------- Run | Yrd Mat Mat Slots Evolved 2 | . . 2 Power . | . . . Propulsion 1 | . . 1 Utility 1 | . . 1 Weapon . | . . . Parts Attached 17 | 7 3 7 Power 3 | 2 1 . Engine 2 | 2 . . Core 1 | . 1 . Reactor . | . . . Propulsion 2 | 2 . . Treads 2 | 2 . . Leg . | . . . Wheel . | . . . Hover . | . . . Flight . | . . . Utility 4 | 1 2 1 Device 1 | . 1 . Storage 2 | 1 1 . Processor . | . . . Hackware . | . . . Protection 1 | . . 1 Artifact . | . . . Weapon 8 | 2 . 6 Energy Gun . | . . . Energy Cannon . | . . . Ballistic Gun 6 | 2 . 4 Ballistic Cannon . | . . . Launcher 2 | . . 2 Special Weapon . | . . . Impact Weapon . | . . . Slashing Weapon . | . . . Piercing Weapon . | . . . Special Melee Weapon . | . . . Unidentified Prototypes . | . . . Parts Lost 4 | . . 4 Power 1 | . . 1 Propulsion 1 | . . 1 Utility 2 | . . 2 Weapon . | . . . Highest Loss Streak 1 | . . 1 To Critical Strikes . | . . . Average Slot Usage (%) 88 | . 99 76 Engine 2 | . 4 . Core 10 | . 9 11 Treads 22 | . 28 15 Device 11 | . 13 9 Storage 12 | . 14 11 Protection 3 | . . 7 Ballistic Gun 23 | . 28 18 Launcher 1 | . . 3 Peak Build Rating 12 | 6 9 12 Average Rating 8 | 4 8 10 On Entrance 5 | . 6 9 Naked Turns . | . . . Heaviest Build 37 | 12 28 37 Greatest Support 40 | 40 40 40 Greatest Overweight (x) 1 | . . 1 Average Overweight (x) . | . . . Largest Inventory Capacity 15 | 8 15 15 Average Capacity 11 | 7 10 15 Most Carried 12 | 5 7 12 Average Carried 6 | 2 5 8 Final Capacity 15 | 8 15 15 Final Carried 12 | 3 7 12 Class Distribution -------------------- 100% | Mutant Dominant Class ---------------- Mutant | -10/Materials Mutant | -9/Materials Resources | -11 -10 -9 ----------- Run | Yrd Mat Mat Matter Collected 584 | 246 106 232 Remotely . | . . . Salvage Created 762 | 126 165 471 Parts 55 | 10 9 36 Haulers Intercepted . | . . . Recyclers Shooed 1 | . 1 . Parts Field Recycled . | . . . Retrieved Matter . | . . . Parts Self-Destructed . | . . . Prevented . | . . . Kills | -11 -10 -9 ------- Run | Yrd Mat Mat Combat Hostiles Destroyed 17 | . 3 14 Guns 16 | . 3 13 AOE 1 | . . 1 Classes Destroyed 9 | 2 2 5 Builder 1 | . . 1 Tunneler 4 | 3 . 1 Recycler 1 | 1 . . Mechanic 1 | . . 1 Watcher 2 | . 1 1 Swarmer 6 | . . 6 Grunt 7 | . 3 4 Brawler 1 | . . 1 Sentry 3 | . . 3 Best Kill Streak 9 | 3 2 9 Combat Bots Only 9 | . 1 9 Max Kills in Single Turn 2 | 1 1 2 Gunslinging 1 | . . 1 Exploded 1 | . . 1 Melee . | . . . Uniques/NPCs Destroyed . | . . . Combat | -11 -10 -9 -------- Run | Yrd Mat Mat Hostile Shots Fired 126 | . 18 108 Missed 32 | . 7 25 Damage Taken 820 | . 106 714 Core 132 | . 8 124 Absorbed by Shields . | . . . Ignored by Resistances 246 | . 34 212 Core Remaining (%) 98 | 100 96 . Volleys Fired 70 | 9 17 44 Largest 2 | 2 2 2 Hottest 66 | 40 40 66 Shots Fired 140 | 18 34 88 Gun 136 | 18 34 84 Cannon . | . . . Launcher 4 | . . 4 Special . | . . . Kinetic 136 | 18 34 84 Thermal . | . . . Explosive 4 | . . 4 Electromagnetic . | . . . Robot Hit Streak 17 | 11 11 17 Robot Miss Streak 2 | 1 2 2 Penetration Max . | . . . Secondary Targets 2 | . . 2 Max Gunslinging Chain 1 | . . 1 Shots Hit Robots 112 | 14 27 71 Core Hits 51 | 8 13 30 Critical Kills 2 | . . 2 Critical Parts Destroyed . | . . . Critical Strikes 2 | . . 2 Destroy 2 | . . 2 Melee Attacks . | . . . Impact . | . . . Slashing . | . . . Piercing . | . . . Sneak Attacks . | . . . Combat Hostiles . | . . . Follow-up Attacks . | . . . Damage Inflicted 1345 | 108 203 1034 Guns 974 | 108 203 663 Cannons . | . . . Explosions 371 | . . 371 Melee . | . . . Ramming . | . . . Kinetic 974 | 108 203 663 Thermal 226 | . . 226 Explosive 145 | . . 145 Electromagnetic . | . . . Impact . | . . . Slashing . | . . . Piercing . | . . . Highest Corruption 3 | . . 3 Average Corruption 3 | . . 3 Corruption Purged . | . . . Corruption Blocked . | . . . Effects 3 | . . 3 Message Errors 1 | . . 1 Matter Fused 2 | . . 2 Overload Shots . | . . . Overflow Damage 22 | . . 22 Projectiles . | . . . Explosions 22 | . . 22 Melee . | . . . Knockbacks . | . . . Impact . | . . . Kinetic . | . . . Secondary . | . . . Self-Inflicted Damage . | . . . Shots . | . . . Rammed . | . . . Targets Rammed . | . . . Kicked . | . . . Crushed . | . . . Highest Temperature 34 | . 18 34 Average Temperature 9 | . 7 11 Received Heat Transfer 303 | . 78 225 Siege Activations . | . . . Robots Corrupted . | . . . Combat Hostiles . | . . . Parts Fried . | . . . Impact Corruptions . | . . . Robots Melted . | . . . Combat Hostiles . | . . . Parts Melted . | . . . Heat Transferred 150 | . . 150 Parts Sabotaged . | . . . Parts Stolen . | . . . Parts Stripped . | . . . Power Chain Reactions . | . . . Alert | -11 -10 -9 ------- Run | Yrd Mat Mat Peak Influence 471 | 20 103 471 Initial 11 | . 11 10 Average 119 | 6 55 216 Maximum Alert Level 2 | . . 2 Low Security (%) 74 | 100 100 40 Level 1 16 | . . 39 Level 2 8 | . . 20 Level 3 . | . . . Level 4 . | . . . Level 5 . | . . . High Security . | . . . Max Security . | . . . Squads Dispatched 3 | . 1 2 Investigation 1 | . 1 . Extermination . | . . . Reinforcement 2 | . . 2 Assault . | . . . Garrison . | . . . Intercept . | . . . Searches Triggered . | . . . Construction Impeded . | . . . Haulers Reinforced . | . . . Active Scanning Responses . | . . . Cargo Convoy Interrupts . | . . . Stealth | -11 -10 -9 --------- Run | Yrd Mat Mat Distress Signals 4 | . 2 2 Communications Jammed . | . . . Distress Signals . | . . . Times Spotted 25 | . 6 19 Peak Tracking Total 7 | . 3 7 Tactical Retreats 1 | . 1 . Traps | -11 -10 -9 ------- Run | Yrd Mat Mat Traps Triggered 1 | . 1 . Indirectly . | . . . Trap Hack Attempts . | . . . Triggered . | . . . Disarmed . | . . . Reprogrammed . | . . . Reused . | . . . Traps Extracted . | . . . Installed . | . . . Triggered . | . . . Machines | -11 -10 -9 ---------- Run | Yrd Mat Mat Machines Disabled 2 | . . 2 Max in Single Turn 2 | . . 2 Machines Repaired . | . . . Machines Dismantled . | . . . Machines Sabotaged . | . . . Overloaded Fab Kills . | . . . Hacking | -11 -10 -9 --------- Run | Yrd Mat Mat Machines Accessed 3 | . 3 . Terminals 2 | . 2 . Fabricators . | . . . Repair Stations . | . . . Recycling Units 1 | . 1 . Scanalyzers . | . . . Garrison Access . | . . . Total Hacks 7 | . 7 . Successful 5 | . 5 . Failed 2 | . 2 . Catastrophic . | . . . Database Lockouts . | . . . Manual 5 | . 5 . Terminals 3 | . 3 . Fabricators . | . . . Repair Stations . | . . . Recycling Units 4 | . 4 . Scanalyzers . | . . . Garrison Access . | . . . Terminal Hacks 2 | . 2 . Robot Analysis 2 | . 2 . Fabricator Hacks . | . . . Repair Station Hacks . | . . . Recycling Unit Hacks 3 | . 3 . Report Inventory 2 | . 2 . Retrieve Components 1 | . 1 . Scanalyzer . | . . . Garrison Access Hacks . | . . . Unauthorized Hacks . | . . . Terminals . | . . . Fabricators . | . . . Repair Stations . | . . . Recycling Units . | . . . Scanalyzers . | . . . Garrison Access . | . . . Data Cores Recovered . | . . . Used . | . . . Hacking Detections 1 | . 1 . Full Trace Events . | . . . Feedback Events . | . . . Feedback Blocked . | . . . Robot Schematics Acquired . | . . . Robots Built . | . . . Authchips . | . . . Time . | . . . Total Robot Build Rating . | . . . Part Schematics Acquired . | . . . Parts Built . | . . . Authchips . | . . . Time . | . . . Total Part Build Rating . | . . . Parts Repaired . | . . . Time . | . . . Parts Recycled . | . . . Recycled Matter . | . . . Retrieved Matter . | . . . Retrieved Components 6 | . 6 . Parts Scanalyzed . | . . . Part Schematics Acquired . | . . . Parts Damaged . | . . . Bothacking | -11 -10 -9 ------------ Run | Yrd Mat Mat Used RIF Installer . | . . . Robots Hacked . | . . . Non-combat . | . . . Combat . | . . . Robot Hacks Applied . | . . . Relay Couplers Released . | . . . Fabnet Peak Effective % . | . . . Robots Rewired . | . . . Allies Hacked . | . . . Hacks Repelled . | . . . Allies | -11 -10 -9 -------- Run | Yrd Mat Mat Total Allies . | . . . Largest Group . | . . . Highest-Rated Group . | . . . Highest-Rated Ally . | . . . Total Orders . | . . . Ally Attacks . | . . . Total Damage . | . . . Kills . | . . . Allies Corrupted . | . . . Allies Melted . | . . . Intel | -11 -10 -9 ------- Run | Yrd Mat Mat Robot Analysis Total 2 | . 2 . Derelict Logs Recovered . | . . . Drone Launches . | . . . Drone Recoveries . | . . . Exploration | -11 -10 -9 ------------- Run | Yrd Mat Mat Turns Passed 1096 | 121 507 468 Spaces Moved 473 | 65 270 138 Core 20 | 20 . . Treads 453 | 45 270 138 Legs . | . . . Wheels . | . . . Hover . | . . . Flight . | . . . Fastest Speed 50 | 50 160 160 Average Speed 167 | 126 160 202 Slowest Speed 240 | 160 160 240 Overloaded Moves . | . . . Propulsion Burnouts . | . . . Robots Hopped . | . . . Cave-ins Triggered . | . . . Exploration Rate (%) 19 | 6 35 16 Regions Visited 2 Branch Regions . Pre-discovered Areas . | . . . Known Exits Taken . | . . . Unknown Exits Taken 2 | 1 1 . Scrap Searched . | . . . Spaces Dug . | . . . Terrain Destroyed 51 | . . 51 Melee . | . . . Projectile . | . . . AOE 51 | . . 51 Terrain Rammed . | . . . Walls Destroyed . | . . . Machines Disabled . | . . . Actions | -11 -10 -9 --------- Run | Yrd Mat Mat Total 653 | 89 317 247 Wait 75 | . 23 52 Move 471 | 64 269 138 Hop . | . . . Pick Up 20 | 9 5 6 Fast Attach . | . . . Attach 8 | 6 1 1 Detach . | . . . Swap 9 | 1 2 6 Drop . | . . . Fire 70 | 9 17 44 Melee . | . . . Ram . | . . . Kick . | . . . Crush . | . . . Escape Stasis . | . . . Rewire . | . . . Trap . | . . . Miscellaneous . | . . . Route ------- -11/Scrapyard -10/Materials -9/Materials (discovered 1 exit: [*Min]) History --------- Turn | Location | Event 2 | -11/Scrapyard | Discovered new exit (range 16) 122 | -11/Scrapyard | Entered Materials 310 | -10/Materials | Build established: Mutant 487 | -10/Materials | Discovered new exit (range 3) 629 | -10/Materials | Entered another Materials area 629 | -9/Materials | Evolved 2 slots: Propulsion x1, Utility x1 856 | -9/Materials | Destroyed 9 combat bots 869 | -9/Materials | Discovered new exit (range 7) 1097 | -9/Materials | Self-destructed Last Messages --------------- 01022_ Acquired 39 matter. 01027_ Acquired 109 matter. 01027_ K-01 Serf collects debris. 01031_ U-05 Engineer builds a Wall. 01032_ 1O/T%CYAJRUMQ|B7 U%TYY 01032_ Acquired Lgt. Armor Plating. 01035_ U-05 Engineer lays Concrete. 01060_ System corrupted: Matter fused (-5). 01063_ W-16 Scout destroyed. 01076_ R-06 Scavenger collects Hover Unit. 01077_ K-01 Serf collects debris. 01078_ Acquired 23 matter. 01080_ R-06 Scavenger collects Signal Interpreter. 01081_ K-01 Serf collects debris. 01084_ R-06 Scavenger collects Lgt. Ion Engine. 01085_ K-01 Serf collects debris. 01089_ K-01 Serf cleans the Pressure Siphon. 01090_ Lgt. Nuclear Core destroyed. 01092_ System corrupted: Matter fused (-8). Map ----- +----------------------------------------------------+ | ?????????????????????????????????????????????????? | | ?????????????????????????????????????????????????? | | ?????????????????????????????????????????##??????? | | ????????????????????????????????????????? #??###? | | ????????????????????????????????????????? ?? ? | | ????????????????????????????????????????? ? ?? | | ??????????????????????##########?##?????? ? ??? | | ??????????????????????# "T" #?????? %## #### | | ??????????????????????# #?????# "# | | ??????????????????????# #????? # " | | ??????????????????????# """ """ #????? " | | ??????????????????????# """ """ #?????# | | ?????????????????????## """ """ #?????# | | ?????????????????????# = ! #????? | | ???????????????????#########"###########" | | ???????????????????# ! #!% # | | ???????????????????# # + | | ???????????????????# """" + # | | ???????????????????# """" # """" # " | | ???????????????????# """" # """" #""""""""" | | ???????????????????# #/[[ """" #?# " | | ?????????????????##########/[[ #??### T" | | ?????????????????#""|"|"??#/[[ #????# " | | ?????????????????# "|"|" ?# %[[ #????# | | ?????????????##### ## a [ #????# | | ?????????? u @ [ ####### | | ?????????? < % | | ?????????? %^[ g | | ???????????t #### ##+##### | | ?????????????????#########=%!%==# ^ | | ?????????????????????????#"S*[%%/ !!! """ | | ?????????????????????????#"""!*=###### !! """ | | ?????????????????????????# ""! #????# !! """ | | ?????????????????????????# #????# | | ?????????????????????????# #????# | | ?????????????????????????########????# | | ???????????????????????????????????? [ | | ???????????????????????????????????? | | ??????????????????????????????????? | | ????????????????????????????????????#### #### | | ???????????????????????????????????????# #??# | | ???????????????????????????????????????? #??# | | ???????????????????????????????????????? ????? | | ?????????????????????????????????????????????????? | | ?????????????????????????????????????????????????? | | ?????????????????????????????????????????????????? | | ?????????????????????????????????????????????????? | | ?????????????????????????????????????????????????? | | ?????????????????????????????????????????????????? | | ?????????????????????????????????????????????????? | +----------------------------------------------------+ Best States ------------- Heat Dissipation 28 Energy Generation 14 Energy Capacity 250 Matter Stores 300 Matter Capacity 300 Sight Range 16 Terrain Scan Density 10 Armor Coverage 150 Resistance: KI 20 Resistance: TH 20 Resistance: EX 20 Resistance: EM 20 Resistance: I 20 Resistance: S 20 Resistance: P 20 Evasion (%) 40 Recoil Reduction 2 Offensive Hacking 10 Item Schematics ----------------- None Robot Schematics ------------------ None Fabricated ------------ Nothing Alien Tech Used ----------------- None Achievements -------------- None Challenges ------------ None Game ------ Seed PowerSystemDiverter Manual? 0 Play Time 00:12:49 Cumulative 25.8 hours Start 2025.02.27 @ 21:07:44 End 2025.02.27 @ 22:28:26 Sessions 2 Manual Loads 0 Difficulty Adventurer Special Mode None Game No. 26 Rogue 0 Adventurer 26 Explorer 0 Win Type - Total 0 Types 0/0/0/0/0/0/0/0/0 Lore% 17 Gallery% 25 Achievement% 22 Wizard Run 0 Options --------- Layout 1 ASCII 0 Keyboard 0 Movement Mouse Keybinds 0 Fullscreen 1 Font 24/Smallcaps Map View 50x35 Zoom Use 0% Tactical HUD 1 Map Filters NONE Filters NONE Steam 1 RUN: c5555e93-d526-4b96-b7a3-71787ba1eb91